fUSD/lending_fUSD_20260605
["ID","MTS","AMOUNT","RATE_DAILY","PERIOD"]
[424206935,1780665103000,-500.0,0.00019,2]
[424206933,1780665103000,-5243.06279321,0.00019,2]
[424206931,1780665103000,-1622.65152148,0.000189,2]
[424206932,1780665103000,-983.8,0.00018904,2]
[424206929,1780665103000,-2129.0,0.00018896,2]
[424206930,1780665103000,-7963.16118171,0.000189,2]
[424206926,1780665103000,-1865.36488656,0.00018756,2]
[424206915,1780665103000,-1959.73724832,0.000185,2]
[424206922,1780665103000,-7963.16118171,0.000187,2]
[424206925,1780665103000,-543.0,0.00018702,2]
[424206921,1780665103000,-1959.73724832,0.000187,2]
[424206924,1780665103000,-629.0,0.00018702,2]
[424206920,1780665103000,-6453.0,0.0001868,2]
[424206923,1780665103000,-1622.65152148,0.000187,2]
[424206918,1780665103000,-500.0,0.00018638,2]
[424206919,1780665103000,-2000.0,0.00018638,2]
[424206917,1780665103000,-1622.65152148,0.000185,2]
[424206916,1780665103000,-7963.16118171,0.000185,2]
[424206927,1780665103000,-1280.88388877,0.00018756,2]
[424206939,1780665103000,-500.0,0.00019,2]
[424206938,1780665103000,-500.0,0.00019,2]
[424206941,1780665103000,-500.0,0.00019,2]
[424206940,1780665103000,-500.0,0.00019,2]
[424206964,1780665103000,-151.0,0.00019178,2]
[424206965,1780665103000,-151.0,0.00019178,2]
[424206963,1780665103000,-151.0,0.00019178,2]
[424206962,1780665103000,-151.0,0.00019178,2]
[424206961,1780665103000,-151.0,0.00019178,2]
[424206960,1780665103000,-151.0,0.00019178,2]
[424206958,1780665103000,-151.0,0.00019178,2]
[424206959,1780665103000,-151.0,0.00019178,2]
[424206955,1780665103000,-250.0,0.00019178,2]
[424206956,1780665103000,-265.4971652,0.00019178,2]
[424206954,1780665103000,-250.0,0.00019178,2]
[424206957,1780665103000,-151.0,0.00019178,2]
[424206953,1780665103000,-250.0,0.00019178,2]
[424206942,1780665103000,-500.0,0.00019,2]
[424206952,1780665103000,-1622.65152148,0.000191,2]
[424206944,1780665103000,-500.0,0.00019,2]
[424206946,1780665103000,-500.0,0.00019,2]
[424206943,1780665103000,-500.0,0.00019,2]
[424206945,1780665103000,-500.0,0.00019,2]
[424206949,1780665103000,-180582.95508246,0.00019,2]
[424206948,1780665103000,-1188.15292381,0.00019,2]
[424206947,1780665103000,-379.5,0.00019,2]
[424206951,1780665103000,-7963.16118171,0.000191,2]
[424206950,1780665103000,-1124.0,0.00019024,2]
[424206982,1780665104000,-314.504776,0.00019178,2]
[424206981,1780665104000,-314.504776,0.00019178,2]
[424206985,1780665104000,-314.504776,0.00019178,2]
[424206983,1780665104000,-314.504776,0.00019178,2]
[424206988,1780665104000,-314.504776,0.00019178,2]
[424206992,1780665104000,-1622.65152148,0.000193,2]
[424206986,1780665104000,-314.504776,0.00019178,2]
[424206990,1780665104000,-314.504766,0.00019178,2]
[424206989,1780665104000,-314.504776,0.00019178,2]
[424206984,1780665104000,-314.504776,0.00019178,2]
[424206987,1780665104000,-314.504776,0.00019178,2]
[424206980,1780665104000,-314.504776,0.00019178,2]
[424206967,1780665104000,-151.0,0.00019178,2]
[424206975,1780665104000,-314.504776,0.00019178,2]
[424206977,1780665104000,-314.504776,0.00019178,2]
[424206979,1780665104000,-314.504776,0.00019178,2]
[424206974,1780665104000,-314.504776,0.00019178,2]
[424206969,1780665104000,-151.0,0.00019178,2]
[424206972,1780665104000,-314.504776,0.00019178,2]
[424206973,1780665104000,-314.504776,0.00019178,2]
[424206971,1780665104000,-314.504776,0.00019178,2]
[424206970,1780665104000,-193.069062,0.00019178,2]
[424206968,1780665104000,-151.0,0.00019178,2]
[424206966,1780665104000,-151.0,0.00019178,2]
[424206991,1780665104000,-7963.16118171,0.000193,2]
[424206978,1780665104000,-314.504776,0.00019178,2]
[424206994,1780665104000,-1328.27659266,0.00019304,2]
[424206976,1780665104000,-314.504776,0.00019178,2]
[424206995,1780665104000,-29999.99,0.00019339,2]
[424206993,1780665104000,-1934.38338736,0.00019304,2]
[424207022,1780665104000,-2005.9555727,0.00019852,2]
[424207020,1780665104000,-639.71455908,0.00019702,2]
[424207015,1780665104000,-1622.65152148,0.000195,2]
[424207019,1780665104000,-1622.65152148,0.000197,2]
[424207018,1780665104000,-7963.16118171,0.000197,2]
[424207014,1780665104000,-7963.16118171,0.000195,2]
[424207016,1780665104000,-678.47,0.00019505,2]
[424207009,1780665104000,-630.0,0.00019476,2]
[424207021,1780665104000,-546.8172967,0.00019702,2]
[424207011,1780665104000,-1079.0,0.00019476,2]
[424207012,1780665104000,-2241.0,0.00019476,2]
[424207013,1780665104000,-1059.0,0.00019491,5]
[424207017,1780665104000,-168.28,0.00019658,2]
[424207010,1780665104000,-4430.0,0.00019476,2]
[424207008,1780665104000,-802.0,0.00019476,2]
[424206997,1780665104000,-1406.99,0.000194,2]
[424206998,1780665104000,-4251.0,0.00019411,2]
[424207000,1780665104000,-1704.0,0.00019452,2]
[424206999,1780665104000,-645.682851,0.00019452,2]
[424207002,1780665104000,-1303.0,0.00019476,2]
[424206996,1780665104000,-9999.99,0.00019339,2]
[424207003,1780665104000,-684.0,0.00019476,2]
[424207005,1780665104000,-3174.0,0.00019476,2]
[424207006,1780665104000,-1071.0,0.00019476,2]
[424207007,1780665104000,-1472.0,0.00019476,2]
[424207004,1780665104000,-3208.0,0.00019476,2]
[424207001,1780665104000,-2814.0,0.00019452,2]
[424207041,1780665105000,-1314.18964137,0.0002,2]
[424207040,1780665105000,-26828.47894211,0.0002,2]
[424207042,1780665105000,-10308.39564687,0.0002,2]
[424207039,1780665105000,-3950.0,0.0002,2]
[424207043,1780665105000,-200.0,0.0002,2]
[424207045,1780665105000,-52434.51447652,0.0002,2]
[424207051,1780665105000,-1392.62385566,0.0002,2]
[424207047,1780665105000,-13119.49849949,0.0002,2]
[424207046,1780665105000,-8000.0,0.0002,2]
[424207048,1780665105000,-152.0,0.0002,2]
[424207050,1780665105000,-2666.999999,0.0002,2]
[424207052,1780665105000,-7519.60815138,0.0002,2]
[424207044,1780665105000,-1060.81222375,0.0002,2]
[424207038,1780665105000,-315.71783904,0.0002,2]
[424207025,1780665105000,-2139.09,0.000199,7]
[424207037,1780665105000,-25972.95343482,0.0002,2]
[424207035,1780665105000,-179.13739599,0.0002,2]
[424207032,1780665105000,-268.9,0.0002,9]
[424207034,1780665105000,-1556.79189131,0.0002,2]
[424207033,1780665105000,-5289.22674421,0.0002,2]
[424207030,1780665105000,-951.0,0.0002,2]
[424207031,1780665105000,-1144.0,0.0002,2]
[424207028,1780665105000,-742.78672044,0.0001995,15]
[424207029,1780665105000,-1722.0,0.0002,2]
[424207027,1780665105000,-183.76678693,0.000199,2]
[424207026,1780665105000,-183.76678693,0.000199,2]
[424207023,1780665105000,-1377.42282658,0.00019852,2]
[424207024,1780665105000,-3863.2148735,0.000199,3]
[424207054,1780665105000,-539.41094589,0.0002,7]
[424207036,1780665105000,-1494.43624644,0.0002,5]
[424207057,1780665105000,-2546.85117746,0.0002,2]
[424207049,1780665105000,-858.0,0.0002,2]
[424207056,1780665105000,-150.0,0.0002,2]
[424207086,1780665105000,-1227.0,0.00020141,2]
[424207058,1780665105000,-400.0,0.0002,2]
[424207085,1780665105000,-437.0,0.00020141,2]
[424207084,1780665105000,-1273.0,0.00020141,2]
[424207079,1780665105000,-150.0,0.00020141,2]
[424207082,1780665105000,-1357.0,0.00020141,2]
[424207083,1780665105000,-3553.0,0.00020141,2]
[424207081,1780665105000,-150.0,0.00020141,2]
[424207078,1780665105000,-150.0,0.00020141,2]
[424207075,1780665105000,-534.657,0.00020136,2]
[424207072,1780665105000,-215.77576141,0.0002,7]
[424207077,1780665105000,-150.0,0.00020141,2]
[424207076,1780665105000,-150.0,0.00020141,2]
[424207074,1780665105000,-500.0,0.00020136,2]
[424207073,1780665105000,-1124.0,0.00020026,2]
[424207080,1780665105000,-150.0,0.00020141,2]
[424207068,1780665105000,-200.0,0.0002,2]
[424207053,1780665105000,-2995.89895247,0.0002,7]
[424207071,1780665105000,-2000.0,0.0002,7]
[424207059,1780665105000,-180.55,0.0002,2]
[424207060,1780665105000,-12892.95,0.0002,2]
[424207063,1780665105000,-176.35814966,0.0002,2]
[424207064,1780665105000,-176.35814966,0.0002,2]
[424207061,1780665105000,-297.76,0.0002,2]
[424207062,1780665105000,-176.35814966,0.0002,2]
[424207065,1780665105000,-176.35814966,0.0002,2]
[424207069,1780665105000,-15388.37,0.0002,2]
[424207070,1780665105000,-992.0,0.0002,2]
[424207066,1780665105000,-176.35814967,0.0002,2]
[424207067,1780665105000,-3949.0,0.0002,2]
[424207055,1780665105000,-746.0,0.0002,2]
[424207112,1780665106000,-152.0,0.000204,2]
[424207108,1780665106000,-4160.35185778,0.000204,2]
[424207109,1780665106000,-152.0,0.000204,2]
[424207111,1780665106000,-151.0,0.000204,2]
[424207110,1780665106000,-151.0,0.000204,2]
[424207107,1780665106000,-174.61919141,0.000204,2]
[424207106,1780665106000,-209.40437684,0.000204,2]
[424207115,1780665106000,-1428.38747117,0.000204,2]
[424207114,1780665106000,-151.0,0.000204,2]
[424207116,1780665106000,-693.39197629,0.000204,2]
[424207117,1780665106000,-152.0,0.000204,2]
[424207118,1780665106000,-200.0,0.000204,2]
[424207119,1780665106000,-151.0,0.000204,2]
[424207122,1780665106000,-151.0,0.000204,2]
[424207105,1780665106000,-152.0,0.000204,2]
[424207113,1780665106000,-152.0,0.000204,2]
[424207100,1780665106000,-152.0,0.000204,2]
[424207090,1780665106000,-200.0,0.000204,2]
[424207102,1780665106000,-151.0,0.000204,2]
[424207123,1780665106000,-152.0,0.000204,2]
[424207089,1780665106000,-209.40437684,0.000204,2]
[424207088,1780665106000,-4780.8,0.00020381,2]
[424207087,1780665106000,-2546.85117746,0.000202,2]
[424207092,1780665106000,-151.0,0.000204,2]
[424207091,1780665106000,-151.0,0.000204,2]
[424207096,1780665106000,-151.0,0.000204,2]
[424207093,1780665106000,-743.50770149,0.000204,2]
[424207094,1780665106000,-209.40437684,0.000204,2]
[424207097,1780665106000,-2080.17592889,0.000204,2]
[424207095,1780665106000,-151.0,0.000204,2]
[424207098,1780665106000,-151.0,0.000204,2]
[424207099,1780665106000,-151.0,0.000204,2]
[424207104,1780665106000,-578.20924308,0.000204,2]
[424207101,1780665106000,-152.0,0.000204,2]
[424207103,1780665106000,-151.0,0.000204,2]
[424207124,1780665106000,-151.0,0.000204,2]
[424207152,1780665106000,-151.0,0.000204,2]
[424207120,1780665106000,-500.0,0.000204,2]
[424207145,1780665106000,-151.0,0.000204,2]
[424207146,1780665106000,-500.0,0.000204,2]
[424207148,1780665106000,-500.0,0.000204,2]
[424207144,1780665106000,-151.0,0.000204,2]
[424207147,1780665106000,-151.0,0.000204,2]
[424207149,1780665106000,-151.0,0.000204,2]
[424207150,1780665106000,-151.0,0.000204,2]
[424207151,1780665106000,-500.0,0.000204,2]
[424207155,1780665106000,-151.0,0.000204,2]
[424207153,1780665106000,-151.0,0.000204,2]
[424207154,1780665106000,-500.0,0.000204,2]
[424207156,1780665106000,-151.0,0.000204,2]
[424207158,1780665106000,-151.0,0.000204,2]
[424207159,1780665106000,-151.0,0.000204,2]
[424207121,1780665106000,-721.12765534,0.000204,2]
[424207143,1780665106000,-500.0,0.000204,2]
[424207142,1780665106000,-151.0,0.000204,2]
[424207157,1780665106000,-500.0,0.000204,2]
[424207140,1780665106000,-500.0,0.000204,2]
[424207141,1780665106000,-151.0,0.000204,2]
[424207126,1780665106000,-151.0,0.000204,2]
[424207127,1780665106000,-500.0,0.000204,2]
[424207128,1780665106000,-152.0,0.000204,2]
[424207130,1780665106000,-200.0,0.000204,2]
[424207129,1780665106000,-151.0,0.000204,2]
[424207132,1780665106000,-500.0,0.000204,2]
[424207125,1780665106000,-160.0,0.000204,2]
[424207133,1780665106000,-9552.16786547,0.000204,2]
[424207136,1780665106000,-151.0,0.000204,2]
[424207135,1780665106000,-152.0,0.000204,2]
[424207134,1780665106000,-151.0,0.000204,2]
[424207139,1780665106000,-151.0,0.000204,2]
[424207137,1780665106000,-500.0,0.000204,2]
[424207131,1780665106000,-152.0,0.000204,2]
[424207138,1780665106000,-151.0,0.000204,2]
[424207180,1780665107000,-4473.91341695,0.0002051,2]
[424207184,1780665107000,-2178.0,0.00020557,2]
[424207181,1780665107000,-745.65223615,0.0002051,2]
[424207182,1780665107000,-21873.0,0.00020548,2]
[424207179,1780665107000,-151.0,0.0002051,2]
[424207183,1780665107000,-9035.0,0.00020548,2]
[424207185,1780665107000,-151.0,0.00020565,2]
[424207187,1780665107000,-773.24136889,0.00020565,2]
[424207188,1780665107000,-150.0,0.0002058,2]
[424207190,1780665107000,-150.0,0.0002058,2]
[424207189,1780665107000,-150.0,0.0002058,2]
[424207191,1780665107000,-150.0,0.0002058,2]
[424207174,1780665107000,-807.0,0.00020476,2]
[424207192,1780665107000,-150.0,0.0002058,2]
[424207175,1780665107000,-639.0,0.00020476,2]
[424207167,1780665107000,-719.04747942,0.00020455,2]
[424207177,1780665107000,-1086.89084215,0.00020476,2]
[424207160,1780665107000,-500.0,0.000204,2]
[424207162,1780665107000,-693.39197629,0.000204,2]
[424207161,1780665107000,-151.0,0.000204,2]
[424207163,1780665107000,-151.0,0.000204,2]
[424207165,1780665107000,-151.0,0.00020455,2]
[424207164,1780665107000,-2546.85117746,0.000204,2]
[424207176,1780665107000,-4447.35156959,0.00020476,2]
[424207166,1780665107000,-4314.28487652,0.00020455,2]
[424207170,1780665107000,-3219.62205104,0.00020476,2]
[424207169,1780665107000,-687.97008557,0.00020476,2]
[424207171,1780665107000,-3181.04793922,0.00020476,2]
[424207172,1780665107000,-1076.41011367,0.00020476,2]
[424207173,1780665107000,-1481.0,0.00020476,2]
[424207178,1780665107000,-2260.54138126,0.00020476,2]
[424207168,1780665107000,-1319.51531788,0.00020476,2]
[424207196,1780665107000,-2546.85117746,0.000206,2]
[424207186,1780665107000,-4639.44821338,0.00020565,2]
[424207195,1780665107000,-150.0,0.0002058,2]
[424207215,1780665107000,-1000.0,0.00020677,2]
[424207216,1780665107000,-1000.0,0.00020677,2]
[424207217,1780665107000,-1000.0,0.00020677,2]
[424207214,1780665107000,-1000.0,0.00020677,2]
[424207218,1780665107000,-1000.0,0.00020677,2]
[424207220,1780665107000,-151.0,0.0002073,2]
[424207213,1780665107000,-1000.0,0.00020677,2]
[424207221,1780665107000,-5173.71618084,0.0002073,2]
[424207227,1780665107000,-305.0,0.00020821,2]
[424207222,1780665107000,-862.28603014,0.0002073,2]
[424207226,1780665107000,-2546.85117746,0.000208,2]
[424207224,1780665107000,-5365.14367954,0.00020785,2]
[424207228,1780665107000,-151.0,0.0002084,2]
[424207198,1780665107000,-500.0,0.000206,2]
[424207223,1780665107000,-151.0,0.00020785,2]
[424207219,1780665107000,-23015.1896691,0.000207,2]
[424207225,1780665107000,-894.19061325,0.00020785,2]
[424207207,1780665107000,-4989.11878577,0.00020675,2]
[424207206,1780665107000,-151.0,0.00020675,2]
[424207194,1780665107000,-150.0,0.0002058,2]
[424207197,1780665107000,-500.0,0.000206,2]
[424207200,1780665107000,-500.0,0.000206,2]
[424207201,1780665107000,-500.0,0.000206,2]
[424207199,1780665107000,-500.0,0.000206,2]
[424207202,1780665107000,-151.0,0.0002062,2]
[424207193,1780665107000,-150.0,0.0002058,2]
[424207204,1780665107000,-801.85129954,0.0002062,2]
[424207205,1780665107000,-150.0,0.00020645,3]
[424207212,1780665107000,-1000.0,0.00020677,2]
[424207209,1780665107000,-1000.0,0.00020677,2]
[424207211,1780665107000,-1000.0,0.00020677,2]
[424207208,1780665107000,-831.51979762,0.00020675,2]
[424207203,1780665107000,-4811.10779727,0.0002062,2]
[424207210,1780665107000,-1000.0,0.00020677,2]
[424207247,1780665108000,-9905.59807649,0.00020948,2]
[424207248,1780665108000,-151.0,0.0002095,2]
[424207249,1780665108000,-5982.98103368,0.0002095,2]
[424207250,1780665108000,-997.16350561,0.0002095,2]
[424207251,1780665108000,-1211.88621371,0.00021,2]
[424207256,1780665108000,-160.0,0.00021,7]
[424207252,1780665108000,-200.01508657,0.00021,2]
[424207253,1780665108000,-150.0,0.00021,2]
[424207257,1780665108000,-55758.94168155,0.00021,4]
[424207259,1780665108000,-1230.38036467,0.00021,2]
[424207246,1780665108000,-200.0,0.00020948,2]
[424207255,1780665108000,-1236.78174269,0.00021,7]
[424207254,1780665108000,-342.43914338,0.00021,2]
[424207244,1780665108000,-200.0,0.00020948,2]
[424207236,1780665108000,-217.15233878,0.00020948,2]
[424207243,1780665108000,-1481.2378076,0.00020948,2]
[424207242,1780665108000,-719.04747942,0.00020948,2]
[424207241,1780665108000,-151.0,0.00020948,2]
[424207239,1780665108000,-217.15233878,0.00020948,2]
[424207238,1780665108000,-151.0,0.00020948,2]
[424207235,1780665108000,-771.01748644,0.00020948,2]
[424207240,1780665108000,-181.08010149,0.00020948,2]
[424207237,1780665108000,-2157.14243826,0.00020948,2]
[424207232,1780665108000,-5769.50919352,0.00020894,2]
[424207234,1780665108000,-200.0,0.00020948,2]
[424207229,1780665108000,-5563.65399568,0.0002084,2]
[424207231,1780665108000,-151.0,0.00020894,2]
[424207233,1780665108000,-961.58486558,0.00020894,2]
[424207258,1780665108000,-2546.85117746,0.00021,2]
[424207245,1780665108000,-500.0,0.00020948,2]
[424207260,1780665108000,-1406.99,0.00021,2]
[424207230,1780665108000,-927.27566594,0.0002084,2]
[424207262,1780665108000,-6111.0,0.00021,2]
[424207261,1780665108000,-15000.0,0.00021,2]
[424207292,1780665108000,-500.0,0.00021496,2]
[424207293,1780665108000,-200.0,0.00021496,2]
[424207291,1780665108000,-200.0,0.00021496,2]
[424207289,1780665108000,-745.65223615,0.00021496,2]
[424207290,1780665108000,-1536.04360648,0.00021496,2]
[424207288,1780665108000,-187.78006524,0.00021496,2]
[424207287,1780665108000,-151.0,0.00021496,2]
[424207284,1780665108000,-225.18697532,0.00021496,2]
[424207285,1780665108000,-2236.95670847,0.00021496,2]
[424207283,1780665108000,-799.54513344,0.00021496,2]
[424207282,1780665108000,-200.0,0.00021496,2]
[424207281,1780665108000,-572.92,0.0002148,2]
[424207277,1780665108000,-1230.38036467,0.000214,2]
[424207278,1780665108000,-500.0,0.00021439,2]
[424207286,1780665108000,-151.0,0.00021496,2]
[424207280,1780665108000,-196.0,0.00021445,3]
[424207279,1780665108000,-2008.72724108,0.00021439,2]
[424207268,1780665108000,-315.0,0.000211,2]
[424207266,1780665108000,-309.0,0.000211,2]
[424207264,1780665108000,-6111.0,0.00021,2]
[424207265,1780665108000,-1124.0,0.0002108,2]
[424207263,1780665108000,-15000.0,0.00021,2]
[424207270,1780665108000,-1230.38036467,0.000212,2]
[424207267,1780665108000,-1000.0,0.000211,2]
[424207269,1780665108000,-2546.85117746,0.000212,2]
[424207272,1780665108000,-500.0,0.00021356,7]
[424207274,1780665108000,-1400.0,0.00021356,7]
[424207273,1780665108000,-500.0,0.00021356,7]
[424207275,1780665108000,-4775.8,0.0002137,2]
[424207276,1780665108000,-2546.85117746,0.000214,2]
[424207271,1780665108000,-2950.67,0.00021205,2]
[424207314,1780665109000,-152.582099,0.00021918,2]
[424207313,1780665109000,-151.0,0.00021918,2]
[424207312,1780665109000,-151.0,0.00021918,2]
[424207317,1780665109000,-166.0,0.00021918,2]
[424207315,1780665109000,-5000.0,0.00021918,2]
[424207316,1780665109000,-150.0,0.00021918,2]
[424207321,1780665109000,-150.0,0.00021918,2]
[424207320,1780665109000,-166.0,0.00021918,2]
[424207323,1780665109000,-500.0,0.00021939,14]
[424207324,1780665109000,-1050.0,0.00021985,2]
[424207322,1780665109000,-200.0,0.00021918,2]
[424207319,1780665109000,-166.0,0.00021918,2]
[424207311,1780665109000,-151.0,0.00021918,2]
[424207318,1780665109000,-166.0,0.00021918,2]
[424207309,1780665109000,-151.0,0.00021918,2]
[424207298,1780665109000,-1230.38036467,0.000216,2]
[424207307,1780665109000,-2102.33439099,0.00021918,2]
[424207306,1780665109000,-1230.38036467,0.000219,2]
[424207308,1780665109000,-1007.45,0.00021918,2]
[424207305,1780665109000,-2546.85117746,0.000219,2]
[424207303,1780665109000,-160.0,0.00021769,2]
[424207302,1780665109000,-156.587,0.00021769,2]
[424207301,1780665109000,-217.15233878,0.00021769,2]
[424207304,1780665109000,-1228.5703,0.0002185,2]
[424207300,1780665109000,-15388.37,0.00021723,2]
[424207296,1780665109000,-225.69394633,0.000215,2]
[424207299,1780665109000,-2546.85117746,0.000217,2]
[424207295,1780665109000,-58472.50464696,0.000215,2]
[424207294,1780665109000,-10272.10520532,0.00021496,2]
[424207297,1780665109000,-333.15818647,0.00021535,10]
[424207310,1780665109000,-151.0,0.00021918,2]
[424207326,1780665109000,-160.0,0.00022,2]
[424207329,1780665109000,-450.0,0.00022,2]
[424207327,1780665109000,-300.0,0.00022,2]
[424207359,1780665109000,-500.0,0.00022,7]
[424207325,1780665109000,-300.0,0.00021985,7]
[424207356,1780665109000,-158.06,0.00022,7]
[424207355,1780665109000,-500.0,0.00022,7]
[424207357,1780665109000,-500.0,0.00022,7]
[424207353,1780665109000,-500.0,0.00022,7]
[424207352,1780665109000,-500.0,0.00022,7]
[424207354,1780665109000,-500.0,0.00022,7]
[424207350,1780665109000,-500.0,0.00022,7]
[424207351,1780665109000,-500.0,0.00022,7]
[424207348,1780665109000,-500.0,0.00022,7]
[424207349,1780665109000,-500.0,0.00022,7]
[424207347,1780665109000,-500.0,0.00022,7]
[424207346,1780665109000,-500.0,0.00022,7]
[424207340,1780665109000,-500.0,0.00022,7]
[424207358,1780665109000,-500.0,0.00022,7]
[424207341,1780665109000,-500.0,0.00022,7]
[424207339,1780665109000,-500.0,0.00022,7]
[424207330,1780665109000,-500.0,0.00022,7]
[424207331,1780665109000,-500.0,0.00022,7]
[424207333,1780665109000,-500.0,0.00022,7]
[424207332,1780665109000,-500.0,0.00022,7]
[424207336,1780665109000,-500.0,0.00022,7]
[424207335,1780665109000,-500.0,0.00022,7]
[424207328,1780665109000,-327.3,0.00022,10]
[424207334,1780665109000,-500.0,0.00022,7]
[424207337,1780665109000,-500.0,0.00022,7]
[424207345,1780665109000,-500.0,0.00022,7]
[424207344,1780665109000,-500.0,0.00022,7]
[424207342,1780665109000,-500.0,0.00022,7]
[424207338,1780665109000,-500.0,0.00022,7]
[424207343,1780665109000,-500.0,0.00022,7]
[424207378,1780665110000,-500.0,0.00022,7]
[424207375,1780665110000,-500.0,0.00022,7]
[424207380,1780665110000,-500.0,0.00022,7]
[424207382,1780665110000,-509.37,0.00022,7]
[424207381,1780665110000,-500.0,0.00022,7]
[424207386,1780665110000,-500.0,0.00022,7]
[424207385,1780665110000,-500.0,0.00022,7]
[424207384,1780665110000,-500.0,0.00022,7]
[424207383,1780665110000,-500.0,0.00022,7]
[424207387,1780665110000,-500.0,0.00022,7]
[424207374,1780665110000,-516.37,0.00022,7]
[424207379,1780665110000,-500.0,0.00022,7]
[424207377,1780665110000,-500.0,0.00022,7]
[424207366,1780665110000,-500.0,0.00022,7]
[424207373,1780665110000,-500.0,0.00022,7]
[424207372,1780665110000,-500.0,0.00022,7]
[424207369,1780665110000,-500.0,0.00022,7]
[424207371,1780665110000,-500.0,0.00022,7]
[424207370,1780665110000,-500.0,0.00022,7]
[424207368,1780665110000,-500.0,0.00022,7]
[424207367,1780665110000,-500.0,0.00022,7]
[424207365,1780665110000,-500.0,0.00022,7]
[424207364,1780665110000,-500.0,0.00022,7]
[424207362,1780665110000,-500.0,0.00022,7]
[424207361,1780665110000,-500.0,0.00022,7]
[424207363,1780665110000,-500.0,0.00022,7]
[424207360,1780665110000,-500.0,0.00022,7]
[424207376,1780665110000,-500.0,0.00022,7]
[424207390,1780665110000,-500.0,0.00022,7]
[424207398,1780665110000,-500.0,0.00022,7]
[424207389,1780665110000,-500.0,0.00022,7]
[424207419,1780665110000,-500.0,0.00022,7]
[424207418,1780665110000,-500.0,0.00022,7]
[424207417,1780665110000,-500.0,0.00022,7]
[424207415,1780665110000,-500.0,0.00022,7]
[424207416,1780665110000,-500.0,0.00022,7]
[424207414,1780665110000,-500.0,0.00022,7]
[424207412,1780665110000,-500.0,0.00022,7]
[424207411,1780665110000,-500.0,0.00022,7]
[424207410,1780665110000,-500.0,0.00022,7]
[424207409,1780665110000,-500.0,0.00022,7]
[424207413,1780665110000,-500.0,0.00022,7]
[424207407,1780665110000,-500.0,0.00022,7]
[424207408,1780665110000,-500.0,0.00022,7]
[424207406,1780665110000,-500.0,0.00022,7]
[424207388,1780665110000,-500.0,0.00022,7]
[424207401,1780665110000,-500.0,0.00022,7]
[424207405,1780665110000,-500.0,0.00022,7]
[424207392,1780665110000,-500.0,0.00022,7]
[424207391,1780665110000,-500.0,0.00022,7]
[424207394,1780665110000,-500.0,0.00022,7]
[424207393,1780665110000,-500.0,0.00022,7]
[424207397,1780665110000,-500.0,0.00022,7]
[424207399,1780665110000,-500.0,0.00022,7]
[424207395,1780665110000,-500.0,0.00022,7]
[424207400,1780665110000,-500.0,0.00022,7]
[424207403,1780665110000,-500.0,0.00022,7]
[424207402,1780665110000,-500.0,0.00022,7]
[424207404,1780665110000,-500.0,0.00022,7]